Workbook

Sheet GASTOS
D1: FONDO ROTATORIO DEL DANE - FONDANE | BF1: CÓDIGO: GFI-020-PDT-003-f-001
D2: Informe Mensual de Ejecución del Presupuesto de Gastos | BF2: VERSIÓN : 06
D3: Apropiaciones de la Vigencia
A4: SECCION: 0402 | BF4: Mes Enero Vigencia 2025
A5: UNIDAD EJECUTORA: 040200
A6: RUBRO | B6: Rec | C6: DESCRIPCION | D6: APR. INICIAL | E6: APR. ADICIONADA | F6: APR. REDUCIDA | G6: APR. VIGENTE | H6: CDP Enero | I6: CDP Febrero | J6: CDP Marzo | K6: CDP Abril | L6: CDP Mayo | M6: CDP Junio | N6: CDP Julio | O6: CDP Agosto | P6: CDP Septiembre | Q6: CDP Octubre | R6: CDP Noviembre | S6: CDP Diciembre | T6: CDP Acumulados | U6: Compromiso Enero | V6: Compromiso Febrero | W6: Compromiso Marzo | X6: Compromiso Abril | Y6: Compromiso Mayo | Z6: Compromiso Junio | AA6: Compromiso Julio | AB6: Compromiso Agosto | AC6: Compromiso Septiembre | AD6: Compromiso Octubre | AE6: Compromiso Noviembre | AF6: Compromiso Diciembre | AG6: Compromiso Acumulados | AH6: Obligación Enero | AI6: Obligación Febrero | AJ6: Obligación Marzo | AK6: Obligación Abril | AL6: Obligación Mayo | AM6: Obligación Junio | AN6: Obligación Julio | AO6: Obligación Agosto | AP6: Obligación Septiembre | AQ6: Obligación Octubre | AR6: Obligación Noviembre | AS6: Obligación Diciembre | AT6: Obligación Acumulados | AU6: Pagos Enero | AV6: Pagos Febrero | AW6: Pagos Marzo | AX6: Pagos Abril | AY6: Pagos Mayo | AZ6: Pagos Junio | BA6: Pagos Julio | BB6: Pagos Agosto | BC6: Pagos Septiembre | BD6: Pagos Octubre | BE6: Pagos Noviembre | BF6: Pagos Diciembre | BG6: Pagos Acumulados
A7: A | C7: FUNCIONAMIENTO | D7: =+D8+D16+D20 -> 2744000000 | E7: 0 | F7: 0 | G7: 2744000000 | H7: 277973333.3 | I7: 0 | J7: 0 | K7: 0 | L7: 0 | M7: 0 | N7: 0 | O7: 0 | P7: 0 | Q7: 0 | R7: 0 | S7: 0 | T7: 277973333.3 | U7: 0 | V7: 0 | W7: 0 | X7: 0 | Y7: 0 | Z7: 0 | AA7: 0 | AB7: 0 | AC7: 0 | AD7: 0 | AE7: 0 | AF7: 0 | AG7: 0 | AH7: 0 | AI7: 0 | AJ7: 0 | AK7: 0 | AL7: 0 | AM7: 0 | AN7: 0 | AO7: 0 | AP7: 0 | AQ7: 0 | AR7: 0 | AS7: 0 | AT7: 0 | AU7: 0 | AV7: 0 | AW7: 0 | AX7: 0 | AY7: 0 | AZ7: 0 | BA7: 0 | BB7: 0 | BC7: 0 | BD7: 0 | BE7: 0 | BF7: 0 | BG7: 0
A8: A-02 | C8: ADQUISICIÓN DE BIENES Y SERVICIOS | D8: =+D9 -> 2430000000 | E8: 0 | F8: 0 | G8: 2430000000 | H8: 277973333.3 | I8: 0 | J8: 0 | K8: 0 | L8: 0 | M8: 0 | N8: 0 | O8: 0 | P8: 0 | Q8: 0 | R8: 0 | S8: 0 | T8: 277973333.3 | U8: 0 | V8: 0 | W8: 0 | X8: 0 | Y8: 0 | Z8: 0 | AA8: 0 | AB8: 0 | AC8: 0 | AD8: 0 | AE8: 0 | AF8: 0 | AG8: 0 | AH8: 0 | AI8: 0 | AJ8: 0 | AK8: 0 | AL8: 0 | AM8: 0 | AN8: 0 | AO8: 0 | AP8: 0 | AQ8: 0 | AR8: 0 | AS8: 0 | AT8: 0 | AU8: 0 | AV8: 0 | AW8: 0 | AX8: 0 | AY8: 0 | AZ8: 0 | BA8: 0 | BB8: 0 | BC8: 0 | BD8: 0 | BE8: 0 | BF8: 0 | BG8: 0
A9: A-02-02 | C9: ADQUISIONES DIFERENTES DE ACTIVOS | D9: =+D10 -> 2430000000 | E9: 0 | F9: 0 | G9: 2430000000 | H9: 277973333.3 | I9: 0 | J9: 0 | K9: 0 | L9: 0 | M9: 0 | N9: 0 | O9: 0 | P9: 0 | Q9: 0 | R9: 0 | S9: 0 | T9: =+T10 -> 277973333.3 | U9: 0 | V9: 0 | W9: 0 | X9: 0 | Y9: 0 | Z9: 0 | AA9: 0 | AB9: 0 | AC9: 0 | AD9: 0 | AE9: 0 | AF9: 0 | AG9: 0 | AH9: 0 | AI9: 0 | AJ9: 0 | AK9: 0 | AL9: 0 | AM9: 0 | AN9: 0 | AO9: 0 | AP9: 0 | AQ9: 0 | AR9: 0 | AS9: 0 | AT9: 0 | AU9: 0 | AV9: 0 | AW9: 0 | AX9: 0 | AY9: 0 | AZ9: 0 | BA9: 0 | BB9: 0 | BC9: 0 | BD9: 0 | BE9: 0 | BF9: 0 | BG9: 0
A10: A-02-02-02 | C10: ADQUISICIÓN DE SERVICIOS | D10: =+D11+D13 -> 2430000000 | E10: 0 | F10: 0 | G10: 2430000000 | H10: 277973333.3 | I10: 0 | J10: 0 | K10: 0 | L10: 0 | M10: 0 | N10: 0 | O10: 0 | P10: 0 | Q10: 0 | R10: 0 | S10: 0 | T10: 277973333.3 | U10: 0 | V10: 0 | W10: 0 | X10: 0 | Y10: 0 | Z10: 0 | AA10: 0 | AB10: 0 | AC10: 0 | AD10: 0 | AE10: 0 | AF10: 0 | AG10: 0 | AH10: 0 | AI10: 0 | AJ10: 0 | AK10: 0 | AL10: 0 | AM10: 0 | AN10: 0 | AO10: 0 | AP10: 0 | AQ10: 0 | AR10: 0 | AS10: 0 | AT10: 0 | AU10: 0 | AV10: 0 | AW10: 0 | AX10: 0 | AY10: 0 | AZ10: 0 | BA10: 0 | BB10: 0 | BC10: 0 | BD10: 0 | BE10: 0 | BF10: 0 | BG10: 0
A11: A-02-02-02-006 | C11: SERVICIOS DE ALOJAMIENTO; SERVICIOS DE SUMINISTRO DE COMIDAS Y BEBIDAS; SERVICIOS DE TRANSPORTE; Y SERVICIOS DE DISTRIBUCIÓN DE ELECTRICIDAD, GAS Y AGUA | D11: =+D12 -> 300000000 | E11: 0 | F11: 0 | G11: 300000000 | H11: 0 | I11: 0 | J11: 0 | K11: 0 | L11: 0 | M11: 0 | N11: 0 | O11: 0 | P11: 0 | Q11: 0 | R11: 0 | S11: 0 | T11: 0 | U11: 0 | V11: 0 | W11: 0 | X11: 0 | Y11: 0 | Z11: 0 | AA11: 0 | AB11: 0 | AC11: 0 | AD11: 0 | AE11: 0 | AF11: 0 | AG11: 0 | AH11: 0 | AI11: 0 | AJ11: 0 | AK11: 0 | AL11: 0 | AM11: 0 | AN11: 0 | AO11: 0 | AP11: 0 | AQ11: 0 | AR11: 0 | AS11: 0 | AT11: 0 | AU11: 0 | AV11: 0 | AW11: 0 | AX11: 0 | AY11: 0 | AZ11: 0 | BA11: 0 | BB11: 0 | BC11: 0 | BD11: 0 | BE11: 0 | BF11: 0 | BG11: 0
A12: A-02-02-02-006-009 | B12: 20 | C12: SERVICIOS DE DISTRIBUCIÓN DE ELECTRICIDAD, GAS Y AGUA (POR CUENTA PROPIA) | D12: 300000000 | E12: 0 | G12: =SUM(D12:E12)-F12 -> 300000000 | H12: 0 | I12: 0 | J12: 0 | K12: 0 | L12: 0 | M12: 0 | N12: 0 | O12: 0 | P12: 0 | Q12: 0 | R12: 0 | S12: 0 | T12: =SUM(H12:S12) -> 0 | U12: 0 | V12: 0 | W12: 0 | X12: 0 | Y12: 0 | Z12: 0 | AA12: 0 | AB12: 0 | AC12: 0 | AD12: 0 | AE12: 0 | AF12: 0 | AG12: =SUM(U12:AF12) -> 0 | AH12: 0 | AI12: 0 | AJ12: 0 | AK12: 0 | AL12: 0 | AM12: 0 | AN12: 0 | AO12: 0 | AP12: 0 | AQ12: 0 | AR12: 0 | AS12: 0 | AT12: =SUM(AH12:AS12) -> 0 | AU12: 0 | AV12: 0 | AW12: 0 | AX12: 0 | AY12: 0 | AZ12: 0 | BA12: 0 | BB12: 0 | BC12: 0 | BD12: 0 | BE12: 0 | BF12: 0 | BG12: =SUM(AU12:BF12) -> 0
A13: A-02-02-02-008 | C13: SERVICIOS PRESTADOS A LAS EMPRESAS Y SERVICIOS DE PRODUCCIÓN | D13: =++D14+D15 -> 2130000000 | E13: =+E14+E15 -> 0 | F13: 0 | G13: 2130000000 | H13: 277973333.3 | I13: 0 | J13: 0 | K13: 0 | L13: =+L14 -> 0 | M13: =+M14+M15 -> 0 | N13: 0 | O13: 0 | P13: 0 | Q13: 0 | R13: 0 | S13: 0 | T13: 277973333.3 | U13: 0 | V13: 0 | W13: =+W14 -> 0 | X13: =+X14+X15 -> 0 | Y13: 0 | Z13: 0 | AA13: 0 | AB13: 0 | AC13: 0 | AD13: 0 | AE13: =+AE14 -> 0 | AF13: =+AF14+AF15 -> 0 | AG13: =+AG14+AG15 -> 0 | AH13: =+AH14 -> 0 | AI13: =+AI14+AI15 -> 0 | AJ13: =+AJ14 -> 0 | AK13: =+AK14+AK15 -> 0 | AL13: =+AL14 -> 0 | AM13: =+AM14+AM15 -> 0 | AN13: =+AN14+AN15 -> 0 | AO13: =+AO14 -> 0 | AP13: =+AP14+AP15 -> 0 | AQ13: =+AQ14+AQ15 -> 0 | AR13: =AR14+AR15 -> 0 | AS13: =+AS14+AS15 -> 0 | AT13: 0 | AU13: 0 | AV13: 0 | AW13: 0 | AX13: 0 | AY13: 0 | AZ13: 0 | BA13: 0 | BB13: 0 | BC13: 0 | BD13: 0 | BE13: 0 | BF13: 0 | BG13: =+BG14 -> 0
A14: A-02-02-02-008-003 | B14: 20 | C14: SERVICIOS PROFESIONALES, CIENTÍFICOS Y TÉCNICOS (EXCEPTO LOS SERVICIOS DE INVESTIGACION, URBANISMO, JURÍDICOS Y DE CONTABILIDAD) | D14: 1583130000 | E14: 0 | G14: =SUM(D14:E14)-F14 -> 1583130000 | H14: 85250000 | I14: 0 | J14: 0 | K14: 0 | L14: 0 | M14: 0 | N14: 0 | O14: 0 | P14: 0 | Q14: 0 | R14: 0 | S14: 0 | T14: =SUM(H14:S14) -> 85250000 | U14: 0 | V14: 0 | W14: 0 | X14: 0 | Y14: 0 | Z14: 0 | AA14: 0 | AB14: 0 | AC14: 0 | AD14: 0 | AE14: 0 | AF14: 0 | AG14: =SUM(U14:AF14) -> 0 | AH14: 0 | AI14: 0 | AJ14: 0 | AK14: 0 | AL14: 0 | AM14: 0 | AN14: 0 | AO14: 0 | AP14: 0 | AQ14: 0 | AR14: 0 | AS14: 0 | AT14: =SUM(AH14:AS14) -> 0 | AU14: 0 | AV14: 0 | AW14: 0 | AX14: 0 | AY14: 0 | AZ14: 0 | BA14: 0 | BB14: 0 | BC14: 0 | BD14: 0 | BE14: 0 | BF14: 0 | BG14: =SUM(AU14:BF14) -> 0
A15: A-02-02-02-008-003 | B15: 21 | C15: SERVICIOS PROFESIONALES, CIENTÍFICOS Y TÉCNICOS (EXCEPTO LOS SERVICIOS DE INVESTIGACION, URBANISMO, JURÍDICOS Y DE CONTABILIDAD) | D15: 546870000 | E15: 0 | G15: =SUM(D15:E15)-F15 -> 546870000 | H15: 192723333.3 | T15: =SUM(H15:S15) -> 192723333.3 | U15: 0 | V15: 0 | W15: 0 | AU15: 0 | AV15: 0 | AW15: 0 | AX15: 0 | BA15: 0 | BB15: 0 | BC15: 0 | BD15: 0 | BE15: 0 | BF15: 0 | BG15: =SUM(AU15:BF15) -> 0
A16: A-03 | C16: TRANSFERENCIAS CORRIENTES | D16: =+D17 -> 154000000 | E16: =+E17 -> 0 | F16: 0 | G16: 154000000 | H16: 0 | I16: 0 | J16: 0 | K16: 0 | L16: 0 | M16: 0 | N16: 0 | O16: 0 | P16: 0 | Q16: 0 | R16: 0 | S16: 0 | T16: 0 | U16: 0 | V16: 0 | W16: 0 | X16: 0 | Y16: 0 | Z16: 0 | AA16: 0 | AB16: 0 | AC16: 0 | AD16: 0 | AE16: 0 | AF16: 0 | AG16: 0 | AH16: 0 | AI16: 0 | AJ16: 0 | AK16: 0 | AL16: 0 | AM16: 0 | AN16: 0 | AO16: 0 | AP16: 0 | AQ16: 0 | AR16: 0 | AS16: 0 | AT16: 0 | AU16: 0 | AV16: 0 | AW16: 0 | AX16: 0 | AY16: 0 | AZ16: 0 | BA16: 0 | BB16: 0 | BC16: 0 | BD16: 0 | BE16: 0 | BF16: 0 | BG16: 0
A17: A-03-10 | B17: 20 | C17: SENTENCIAS Y CONCILIACIONES | D17: =+D18 -> 154000000 | E17: 0 | F17: 0 | G17: =+G18 -> 154000000 | H17: 0 | I17: 0 | J17: 0 | K17: 0 | L17: 0 | M17: 0 | N17: 0 | O17: 0 | P17: 0 | Q17: 0 | R17: 0 | S17: 0 | T17: 0 | U17: 0 | V17: 0 | W17: 0 | X17: 0 | Y17: 0 | Z17: 0 | AA17: 0 | AB17: 0 | AC17: 0 | AD17: 0 | AE17: 0 | AF17: 0 | AG17: 0 | AH17: 0 | AI17: 0 | AJ17: 0 | AK17: 0 | AL17: 0 | AM17: 0 | AN17: 0 | AO17: 0 | AP17: 0 | AQ17: 0 | AR17: 0 | AS17: 0 | AT17: 0 | AU17: 0 | AV17: 0 | AW17: 0 | AX17: 0 | AY17: 0 | AZ17: 0 | BA17: 0 | BB17: 0 | BC17: 0 | BD17: 0 | BE17: 0 | BF17: 0 | BG17: 0
A18: A-03-10-01 | B18: 20 | C18: FALLOS NACIONALES | D18: =SUM(D19:D19) -> 154000000 | E18: 0 | F18: 0 | G18: 154000000 | H18: 0 | I18: 0 | J18: 0 | K18: 0 | L18: 0 | M18: 0 | N18: 0 | O18: 0 | P18: 0 | Q18: 0 | R18: 0 | S18: 0 | T18: 0 | U18: 0 | V18: 0 | W18: 0 | X18: 0 | Y18: 0 | Z18: 0 | AA18: 0 | AB18: 0 | AC18: 0 | AD18: 0 | AE18: 0 | AF18: 0 | AG18: 0 | AH18: 0 | AI18: 0 | AJ18: 0 | AK18: 0 | AL18: 0 | AM18: 0 | AN18: 0 | AO18: 0 | AP18: 0 | AQ18: 0 | AR18: 0 | AS18: 0 | AT18: 0 | AU18: 0 | AV18: 0 | AW18: 0 | AX18: 0 | AY18: 0 | AZ18: 0 | BA18: 0 | BB18: 0 | BC18: 0 | BD18: 0 | BE18: 0 | BF18: 0 | BG18: 0
A19: A-03-10-01-001 | B19: 20 | C19: SENTENCIAS | D19: 154000000 | E19: 0 | F19: 0 | G19: =SUM(D19:E19)-F19 -> 154000000 | H19: 0 | I19: 0 | J19: 0 | K19: 0 | L19: 0 | M19: 0 | N19: 0 | O19: 0 | P19: 0 | Q19: 0 | R19: 0 | S19: 0 | T19: =SUM(H19:S19) -> 0 | U19: 0 | V19: 0 | W19: 0 | X19: 0 | Y19: 0 | Z19: 0 | AA19: 0 | AB19: 0 | AC19: 0 | AD19: 0 | AE19: 0 | AF19: 0 | AG19: =SUM(U19:AF19) -> 0 | AH19: 0 | AI19: 0 | AJ19: 0 | AK19: 0 | AL19: 0 | AM19: 0 | AN19: 0 | AO19: 0 | AP19: 0 | AQ19: 0 | AR19: 0 | AS19: 0 | AT19: =SUM(AH19:AS19) -> 0 | AU19: 0 | AV19: 0 | AW19: 0 | AX19: 0 | AY19: 0 | AZ19: 0 | BA19: 0 | BB19: 0 | BC19: 0 | BD19: 0 | BE19: 0 | BF19: 0 | BG19: =SUM(AU19:BF19) -> 0
A20: A-08 | C20: GASTOS POR TRIBUTOS, MULTAS, SANCIONES E INTERESES DE MORA | D20: =+D21+D24+D25 -> 160000000 | E20: 0 | F20: 0 | G20: 160000000 | H20: 0 | I20: 0 | J20: 0 | K20: 0 | L20: 0 | M20: 0 | N20: 0 | O20: 0 | P20: 0 | Q20: 0 | R20: 0 | S20: 0 | T20: 0 | U20: 0 | V20: 0 | W20: 0 | X20: 0 | Y20: 0 | Z20: 0 | AA20: 0 | AB20: 0 | AC20: 0 | AD20: 0 | AE20: 0 | AF20: 0 | AG20: 0 | AH20: 0 | AI20: 0 | AJ20: 0 | AK20: 0 | AL20: 0 | AM20: 0 | AN20: 0 | AO20: 0 | AP20: 0 | AQ20: 0 | AR20: 0 | AS20: 0 | AT20: 0 | AU20: 0 | AV20: 0 | AW20: 0 | AX20: 0 | AY20: 0 | AZ20: 0 | BA20: 0 | BB20: 0 | BC20: 0 | BD20: 0 | BE20: 0 | BF20: 0 | BG20: 0
A21: A-08-01 | C21: IMPUESTOS | D21: =+D22 -> 10000000 | E21: =+E22 -> 0 | F21: =+F22 -> 0 | G21: =+G22 -> 10000000 | H21: 0 | I21: 0 | J21: 0 | K21: 0 | L21: 0 | M21: 0 | N21: 0 | O21: 0 | P21: 0 | Q21: 0 | R21: 0 | S21: 0 | T21: 0 | U21: 0 | V21: 0 | W21: 0 | X21: 0 | Y21: 0 | Z21: 0 | AA21: 0 | AB21: 0 | AC21: 0 | AD21: 0 | AE21: 0 | AF21: 0 | AG21: 0 | AH21: 0 | AI21: 0 | AJ21: 0 | AK21: 0 | AL21: 0 | AM21: 0 | AN21: 0 | AO21: 0 | AP21: 0 | AQ21: 0 | AR21: 0 | AS21: 0 | AT21: 0 | AU21: 0 | AV21: 0 | AW21: 0 | AX21: 0 | AY21: 0 | AZ21: 0 | BA21: 0 | BB21: 0 | BC21: 0 | BD21: 0 | BE21: 0 | BF21: 0 | BG21: 0
A22: A-08-01-02 | C22: IMPUESTOS TERRITORIALES | D22: =SUM(D23:D23) -> 10000000 | E22: 0 | F22: 0 | G22: 10000000 | H22: 0 | I22: 0 | J22: 0 | K22: 0 | L22: 0 | M22: 0 | N22: 0 | O22: 0 | P22: 0 | Q22: 0 | R22: 0 | S22: 0 | T22: 0 | U22: 0 | V22: 0 | W22: 0 | X22: 0 | Y22: 0 | Z22: 0 | AA22: 0 | AB22: 0 | AC22: 0 | AD22: 0 | AE22: 0 | AF22: 0 | AG22: 0 | AH22: 0 | AI22: 0 | AJ22: 0 | AK22: 0 | AL22: 0 | AM22: 0 | AN22: 0 | AO22: 0 | AP22: 0 | AQ22: 0 | AR22: 0 | AS22: 0 | AT22: 0 | AU22: 0 | AV22: 0 | AW22: 0 | AX22: 0 | AY22: 0 | AZ22: 0 | BA22: 0 | BB22: 0 | BC22: 0 | BD22: 0 | BE22: 0 | BF22: 0 | BG22: 0
A23: A-08-01-02-003 | B23: 20 | C23: IMPUESTO DE INDUSTRIA Y COMERCIO | D23: 10000000 | F23: 0 | G23: =SUM(D23:E23)-F23 -> 10000000 | H23: 0 | I23: 0 | J23: 0 | K23: 0 | L23: 0 | M23: 0 | N23: 0 | O23: 0 | P23: 0 | Q23: 0 | R23: 0 | S23: 0 | T23: =SUM(H23:S23) -> 0 | U23: 0 | V23: 0 | W23: 0 | X23: 0 | Y23: 0 | Z23: 0 | AA23: 0 | AB23: 0 | AC23: 0 | AD23: 0 | AE23: 0 | AF23: 0 | AG23: =SUM(U23:AF23) -> 0 | AH23: 0 | AI23: 0 | AJ23: 0 | AK23: 0 | AL23: 0 | AM23: 0 | AN23: 0 | AO23: 0 | AP23: 0 | AQ23: 0 | AR23: 0 | AS23: 0 | AT23: =SUM(AH23:AS23) -> 0 | AU23: 0 | AV23: 0 | AW23: 0 | AX23: 0 | AY23: 0 | AZ23: 0 | BA23: 0 | BB23: 0 | BC23: 0 | BD23: 0 | BE23: 0 | BF23: 0 | BG23: =SUM(AU23:BF23) -> 0
A24: A-08-03 | B24: 21 | C24: TASAS Y DERECHOS ADMINISTRATIVOS | D24: 0 | E24: 0 | F24: 0 | G24: =SUM(D24:E24)-F24 -> 0 | H24: 0 | I24: 0 | J24: 0 | K24: 0 | L24: 0 | M24: 0 | N24: 0 | O24: 0 | P24: 0 | Q24: 0 | R24: 0 | S24: 0 | T24: =SUM(H24:S24) -> 0 | U24: 0 | V24: 0 | W24: 0 | X24: 0 | Y24: 0 | Z24: 0 | AA24: 0 | AB24: 0 | AC24: 0 | AD24: 0 | AE24: 0 | AF24: 0 | AG24: =SUM(U24:AF24) -> 0 | AH24: 0 | AI24: 0 | AJ24: 0 | AK24: 0 | AL24: 0 | AM24: 0 | AN24: 0 | AO24: 0 | AP24: 0 | AQ24: 0 | AR24: 0 | AS24: 0 | AT24: =SUM(AH24:AS24) -> 0 | AU24: 0 | AV24: 0 | AW24: 0 | AX24: 0 | AY24: 0 | AZ24: 0 | BA24: 0 | BB24: 0 | BC24: 0 | BD24: 0 | BE24: 0 | BF24: 0 | BG24: =SUM(AU24:BF24) -> 0
A25: A-08-04 | B25: 20 | C25: CONTRIBUCIONES | D25: =+D26 -> 150000000 | E25: =+E26 -> 0 | F25: 0 | G25: 150000000 | H25: 0 | I25: 0 | J25: 0 | K25: 0 | L25: 0 | M25: 0 | N25: 0 | O25: 0 | P25: 0 | Q25: 0 | R25: 0 | S25: 0 | T25: 0 | U25: 0 | V25: 0 | W25: 0 | X25: 0 | Y25: 0 | Z25: 0 | AA25: 0 | AB25: 0 | AC25: 0 | AD25: 0 | AE25: 0 | AF25: 0 | AG25: 0 | AH25: 0 | AI25: 0 | AJ25: 0 | AK25: 0 | AL25: 0 | AM25: 0 | AN25: 0 | AO25: 0 | AP25: 0 | AQ25: 0 | AR25: 0 | AS25: 0 | AT25: 0 | AU25: 0 | AV25: 0 | AW25: 0 | AX25: 0 | AY25: 0 | AZ25: 0 | BA25: 0 | BB25: 0 | BC25: 0 | BD25: 0 | BE25: 0 | BF25: 0 | BG25: 0
A26: A-08-04-01 | B26: 20 | C26: CUOTA DE FISCALIZACIÓN Y AUDITAJE | D26: 150000000 | E26: 0 | F26: 0 | G26: =SUM(D26:E26)-F26 -> 150000000 | H26: 0 | I26: 0 | J26: 0 | K26: 0 | L26: 0 | M26: 0 | N26: 0 | O26: 0 | P26: 0 | Q26: 0 | R26: 0 | S26: 0 | T26: =SUM(H26:S26) -> 0 | U26: 0 | V26: 0 | W26: 0 | X26: 0 | Y26: 0 | Z26: 0 | AA26: 0 | AB26: 0 | AC26: 0 | AD26: 0 | AE26: 0 | AF26: 0 | AG26: =SUM(U26:AF26) -> 0 | AH26: 0 | AI26: 0 | AJ26: 0 | AK26: 0 | AL26: 0 | AM26: 0 | AN26: 0 | AO26: 0 | AP26: 0 | AQ26: 0 | AR26: 0 | AS26: 0 | AT26: =SUM(AH26:AS26) -> 0 | AU26: 0 | AV26: 0 | AW26: 0 | AX26: 0 | AY26: 0 | AZ26: 0 | BA26: 0 | BB26: 0 | BC26: 0 | BD26: 0 | BE26: 0 | BF26: 0 | BG26: =SUM(AU26:BF26) -> 0
A27: C | C27: INVERSIÓN | D27: =+D28 -> 103542006932 | E27: =+E28 -> 0 | F27: 0 | G27: 103542006932 | H27: 3007189891 | I27: 0 | J27: 0 | K27: 0 | L27: 0 | M27: 0 | N27: 0 | O27: 0 | P27: 0 | Q27: 0 | R27: 0 | S27: 0 | T27: 3007189891 | U27: 2017336334 | V27: 0 | W27: 0 | X27: 0 | Y27: 0 | Z27: 0 | AA27: 0 | AB27: 0 | AC27: 0 | AD27: 0 | AE27: 0 | AF27: 0 | AG27: 2017336334 | AH27: 0 | AI27: 0 | AJ27: 0 | AK27: 0 | AL27: 0 | AM27: 0 | AN27: 0 | AO27: 0 | AP27: 0 | AQ27: 0 | AR27: 0 | AS27: 0 | AT27: 0 | AU27: 0 | AV27: 0 | AW27: 0 | AX27: 0 | AY27: 0 | AZ27: 0 | BA27: 0 | BB27: 0 | BC27: 0 | BD27: 0 | BE27: 0 | BF27: 0 | BG27: 0
A28: C-0401-1003-4-20104D | B28: 20 | C28: 2. SEGURIDAD HUMANA Y JUSTICIA SOCIAL / D. DATOS SECTORIALES PARA AUMENTAR EL APROVECHAMIENTO DE DATOS EN EL PAÍS | D28: 103542006932 | F28: 0 | G28: =SUM(D28:E28)-F28 -> 103542006932 | H28: 3007189891 | I28: 0 | J28: 0 | K28: 0 | L28: 0 | M28: 0 | N28: 0 | O28: 0 | P28: 0 | Q28: 0 | R28: 0 | S28: 0 | T28: =SUM(H28:S28) -> 3007189891 | U28: 2017336334 | V28: 0 | W28: 0 | X28: 0 | Y28: 0 | Z28: 0 | AA28: 0 | AB28: 0 | AC28: 0 | AD28: 0 | AE28: 0 | AF28: 0 | AG28: =SUM(U28:AF28) -> 2017336334 | AH28: 0 | AI28: 0 | AJ28: 0 | AK28: 0 | AL28: 0 | AM28: 0 | AN28: 0 | AO28: 0 | AP28: 0 | AQ28: 0 | AR28: 0 | AS28: 0 | AT28: =SUM(AH28:AS28) -> 0 | AU28: 0 | AV28: 0 | AW28: 0 | AX28: 0 | AY28: 0 | AZ28: 0 | BA28: 0 | BB28: 0 | BC28: 0 | BD28: 0 | BE28: 0 | BF28: 0 | BG28: =SUM(AU28:BF28) -> 0
A29: TOTAL PRESUPUESTO DE LA SECCIÓN | D29: =+D7+D27 -> 106286006932 | E29: 0 | F29: 0 | G29: 106286006932 | H29: 3285163224 | I29: 0 | J29: 0 | K29: 0 | L29: 0 | M29: 0 | N29: 0 | O29: 0 | P29: 0 | Q29: 0 | R29: 0 | S29: 0 | T29: 3285163224 | U29: 2017336334 | V29: 0 | W29: 0 | X29: 0 | Y29: 0 | Z29: 0 | AA29: 0 | AB29: 0 | AC29: 0 | AD29: 0 | AE29: 0 | AF29: 0 | AG29: 2017336334 | AH29: 0 | AI29: 0 | AJ29: 0 | AK29: 0 | AL29: 0 | AM29: 0 | AN29: 0 | AO29: 0 | AP29: 0 | AQ29: 0 | AR29: 0 | AS29: 0 | AT29: 0 | AU29: 0 | AV29: 0 | AW29: 0 | AX29: 0 | AY29: 0 | AZ29: 0 | BA29: 0 | BB29: 0 | BC29: 0 | BD29: 0 | BE29: 0 | BF29: 0 | BG29: 0

Sheet CUENTAS POR PAGAR
D1: FONDO ROTATORIO DEL DANE - FONDANE | P1: CÓDIGO: GFI-020-PDT-003-f-001
D2: Informe Mensual de Ejecución de Cuentas por Pagar | P2: VERSIÓN : 06
D3: Cuentas por Pagar 2024
A4: SECCION: 0402 | P4: Mes Enero Vigencia 2025
A5: UNIDAD EJECUTORA: 040200
A6: RUBRO | B6: Rec | C6: DESCRIPCIÓN | D6: OBLIGACIÓN | E6: Pagos enero | F6: Pagos Febrero | G6: Pagos Marzo | H6: Pagos Abril | I6: Pagos Mayo | J6: Pagos Junio | K6: Pagos Julio | L6: Pagos Agosto | M6: Pagos Septiembre | N6: Pagos Octubre | O6: Pagos Noviembre | P6: Pagos Diciembre | Q6: Pagos Acumulados
A7: A | C7: FUNCIONAMIENTO | D7: =+D8+D13+D17 -> 83007203.87 | E7: =+E8+E13+E17 -> 83001181.32 | F7: =+F8+F17 -> 0 | G7: 0 | H7: 0 | I7: 0 | J7: 0 | K7: 0 | L7: 0 | M7: 0 | N7: 0 | O7: 0 | P7: 0 | Q7: 79305181.32
A8: A-02 | C8: ADQUISICIÓN DE BIENES Y SERVICIOS | D8: =+D9 -> 78996109 | E8: =+E9 -> 78996109 | F8: 0 | G8: 0 | H8: 0 | I8: 0 | J8: 0 | K8: 0 | L8: 0 | M8: 0 | N8: 0 | O8: 0 | P8: 0 | Q8: =SUM(E8:P8) -> 78996109
A9: A-02-01 | C9: ADQUISICIÓN DE ACTIVOS NO FINANCIEROS | D9: =+D10 -> 78996109 | E9: =+E10 -> 78996109
A10: A-02-01-01 | C10: MAQUINARIA Y EQUIPO | D10: =SUM(D11+D12) -> 78996109 | E10: =+E11+E12 -> 78996109
A11: A-02-01-01-004-009 | B11: 20 | C11: EQUIPO DE TRANSPORTE | D11: 33860900 | E11: 33860900
A12: A-02-01-01-004-009 | B12: 21 | C12: EQUIPO DE TRANSPORTE | D12: 45135209 | E12: 45135209
A13: A-03 | C13: TRANSFERENCIAS CORRIENTES | D13: =+D14 -> 3696000 | E13: 3696000
A14: A-03-10 | C14: SENTENCIAS Y CONCILIACIONES | D14: 3696000 | E14: 3696000
A15: A-03-10-01 | C15: FALLOS NACIONALES | D15: 3696000 | E15: 3696000
A16: A-03-10-01-001 | B16: 20 | C16: SENTENCIAS | D16: 3696000 | E16: 3696000
A17: A-08 | C17: GASTOS POR TRIBUTOS, MULTAS, SANCIONES E INTERESES DE MORA | D17: =+D18 -> 315094.87 | E17: =+E18 -> 309072.32 | F17: =+F18 -> 0 | G17: 0 | H17: 0 | I17: 0 | J17: 0 | K17: 0 | L17: 0 | M17: 0 | N17: 0 | O17: 0 | P17: 0 | Q17: =+Q18 -> 309072.32
A18: A-08-01 | C18: IMPUESTOS | D18: =+D19 -> 315094.87 | E18: =+E19 -> 309072.32 | F18: 0 | G18: 0 | H18: 0 | I18: 0 | J18: 0 | K18: 0 | L18: 0 | M18: 0 | N18: 0 | O18: 0 | P18: 0 | Q18: =+Q19 -> 309072.32
A19: A-08-01-02-003 | B19: 20 | C19: IMPUESTO DE INDUSTRIA Y COMERCIO | D19: 315094.87 | E19: 309072.32 | F19: 0 | G19: 0 | I19: 0 | J19: 0 | K19: 0 | L19: 0 | M19: 0 | N19: 0 | O19: 0 | P19: 0 | Q19: =SUM(E19:P19) -> 309072.32
C20: INVERSIÓN | D20: =SUM(D21:D21) -> 287285025.2 | E20: 287249380.9 | F20: 0 | G20: 0 | H20: 0 | I20: 0 | J20: 0 | K20: 0 | L20: 0 | M20: 0 | N20: 0 | O20: 0 | P20: 0 | Q20: =SUM(E20:P20) -> 287249380.9
A21: C-0401-1003-3-20104D | B21: 20 | C21: 2. SEGURIDAD HUMANA Y JUSTICIA SOCIAL / D. DATOS SECTORIALES PARA AUMENTAR EL APROVECHAMIENTO DE DATOS EN EL PAÍS | D21: 287285025.2 | E21: 287249380.9 | F21: 0 | G21: 0 | H21: 0 | I21: 0 | J21: 0 | K21: 0 | L21: 0 | M21: 0 | N21: 0 | O21: 0 | P21: 0 | Q21: =SUM(E21:P21) -> 287249380.9
A22: TOTAL PRESUPUESTO DE LA SECCIÓN | D22: =D7+D20 -> 370292229.1 | E22: 370250562.2 | F22: 0 | G22: 0 | H22: 0 | I22: 0 | J22: 0 | K22: 0 | L22: 0 | M22: 0 | N22: 0 | O22: 0 | P22: 0 | Q22: =SUM(E22:P22) -> 370250562.2

Sheet RESERVAS
D1: FONDO ROTATORIO DEL DANE - FONDANE | AD1: CÓDIGO: GFI-020-PDT-003-f-001
D2: Informe Mensual de Ejecución del Presupuesto de Gastos | AD2: VERSIÓN : 06
D3: Reservas de Apropiación 2024
A4: SECCION: 0402 | AD4: Mes Enero Vigencia 2025
A5: UNIDAD EJECUTORA: 040200
A6: RUBRO | B6: Rec | C6: DESCRIPCION | D6: Reservas Constituidas | E6: COMPROMISO | F6: Obligación Enero | G6: Obligación Febrero | H6: Obligación Marzo | I6: Obligación Abril | J6: Obligación Mayo | K6: Obligación Junio | L6: Obligación Julio | M6: Obligación Agosto | N6: Obligación Septiembre | O6: Obligación Octubre | P6: Obligación Noviembre | Q6: Obligación Diciembre | R6: Obligación Acumulados | S6: Pagos Enero | T6: Pagos Febrero | U6: Pagos Marzo | V6: Pagos Abril | W6: Pagos Mayo | X6: Pagos Junio | Y6: Pagos Julio | Z6: Pagos Agosto | AA6: Pagos Septiembre | AB6: Pagos Octubre | AC6: Pagos Noviembre | AD6: Pagos Diciembre | AE6: Pagos Acumulados
A7: A | C7: FUNCIONAMIENTO | D7: =+D8 -> 107948124 | E7: =+E8 -> 107948124 | F7: =+F8 -> 6283333 | G7: 0 | H7: 0 | I7: 0 | J7: 0 | K7: 0 | L7: 0 | M7: 0 | N7: 0 | O7: 0 | P7: 0 | Q7: 0 | R7: 6283333 | S7: 6283333 | T7: 0 | U7: 0 | V7: 0 | W7: 0 | X7: 0 | Y7: 0 | Z7: 0 | AA7: 0 | AB7: 0 | AC7: 0 | AD7: 0 | AE7: 6283333
A8: A-02 | C8: ADQUISICIÓN DE BIENES Y SERVICIOS | D8: =+D9+D12 -> 107948124 | E8: =+E9+E12 -> 107948124 | F8: =+F9+F12 -> 6283333 | G8: 0 | H8: 0 | I8: 0 | J8: 0 | K8: 0 | L8: 0 | M8: 0 | N8: 0 | O8: 0 | P8: 0 | Q8: 0 | R8: =+R9+R12 -> 6283333 | S8: =+S9+S12 -> 6283333 | T8: 0 | U8: 0 | V8: 0 | W8: 0 | X8: 0 | Y8: 0 | Z8: 0 | AA8: 0 | AB8: 0 | AC8: 0 | AD8: 0 | AE8: =+AE9+AE12 -> 6283333
A9: A-02-01 | C9: ADQUISICIÓN DE ACTIVOS NO FINANCIEROS | D9: =+D10 -> 101664791 | E9: =+E10 -> 101664791 | F9: 0 | G9: 0 | H9: 0 | I9: 0 | J9: 0 | K9: 0 | L9: 0 | M9: 0 | N9: 0 | O9: 0 | P9: 0 | Q9: 0 | R9: 0 | S9: 0 | T9: 0 | U9: 0 | V9: 0 | W9: 0 | X9: 0 | Y9: 0 | Z9: 0 | AA9: 0 | AB9: 0 | AC9: 0 | AD9: 0 | AE9: 0
A10: A-02-01-01 | C10: MAQUINARIA Y EQUIPO | D10: =+D11 -> 101664791 | E10: =+E11 -> 101664791 | F10: =+F11 -> 0 | G10: 0 | H10: 0 | I10: 0 | J10: 0 | K10: 0 | L10: 0 | M10: 0 | N10: 0 | O10: 0 | P10: 0 | Q10: 0 | R10: 0 | S10: 0 | T10: 0 | U10: 0 | V10: 0 | W10: 0 | X10: 0 | Y10: 0 | Z10: 0 | AA10: 0 | AB10: 0 | AC10: 0 | AD10: 0 | AE10: 0
A11: A-02-01-01-004-009 | B11: 21 | C11: EQUIPO DE TRANSPORTE | D11: 101664791 | E11: 101664791 | F11: 0 | G11: 0 | H11: 0 | I11: 0 | J11: 0 | K11: 0 | L11: 0 | M11: 0 | N11: 0 | O11: 0 | P11: 0 | Q11: 0 | R11: =SUM(F11:Q11) -> 0 | S11: 0 | T11: 0 | U11: 0 | V11: 0 | W11: 0 | X11: 0 | Y11: 0 | Z11: 0 | AA11: 0 | AB11: 0 | AC11: 0 | AD11: 0 | AE11: =SUM(S11:AD11) -> 0
A12: A-02-02 | C12: ADQUISICIONES DIFERENTES DE ACTIVOS | D12: =+D13 -> 6283333 | E12: =+E13 -> 6283333 | F12: 6283333 | G12: 0 | H12: 0 | I12: 0 | J12: 0 | K12: 0 | L12: 0 | M12: 0 | N12: 0 | O12: 0 | P12: 0 | Q12: 0 | R12: 6283333 | S12: 6283333 | T12: =+T13 -> 0 | U12: 0 | V12: 0 | W12: 0 | X12: 0 | Y12: 0 | Z12: 0 | AA12: 0 | AB12: 0 | AC12: 0 | AD12: 0 | AE12: 6283333
A13: A-02-02-02 | C13: ADQUISICIÓN DE SERVICIOS | D13: 6283333 | E13: =+E14 -> 6283333 | F13: 6283333 | G13: 0 | H13: 0 | I13: 0 | J13: 0 | K13: 0 | L13: 0 | M13: 0 | N13: 0 | O13: 0 | P13: 0 | Q13: 0 | R13: 6283333 | S13: 6283333 | T13: 0 | U13: 0 | V13: 0 | W13: 0 | X13: 0 | Y13: 0 | Z13: 0 | AA13: 0 | AB13: 0 | AC13: 0 | AD13: 0 | AE13: 6283333
A14: A-02-02-02-008-003 | B14: 21 | C14: SERVICIOS PROFESIONALES, CIENTÍFICOS Y TÉCNICOS (EXCEPTO LOS SERVICIOS DE INVESTIGACION, URBANISMO, JURÍDICOS Y DE CONTABILIDAD) | D14: 6283333 | E14: 6283333 | F14: 6283333 | R14: =SUM(F14:Q14) -> 6283333 | S14: 6283333 | AE14: =SUM(S14:AD14) -> 6283333
A15: C | C15: INVERSIÓN | D15: =+D16 -> 1125877319 | E15: =+E16 -> 1125877319 | F15: =+F16 -> 267069422.3 | G15: 0 | H15: 0 | I15: 0 | J15: 0 | K15: 0 | L15: 0 | M15: 0 | N15: 0 | O15: 0 | P15: 0 | Q15: 0 | R15: =+R16 -> 267069422.3 | S15: 267069422.3 | T15: 0 | U15: 0 | V15: 0 | W15: 0 | X15: 0 | Y15: 0 | Z15: 0 | AA15: 0 | AB15: 0 | AC15: 0 | AD15: 0 | AE15: 267069422.3
A16: C-0401-1003-3-20104D | B16: 20 | C16: 2. SEGURIDAD HUMANA Y JUSTICIA SOCIAL / D. DATOS SECTORIALES PARA AUMENTAR EL APROVECHAMIENTO DE DATOS EN EL PAÍS | D16: 1125877319 | E16: 1125877319 | F16: 267069422.3 | G16: 0 | H16: 0 | I16: 0 | J16: 0 | K16: 0 | L16: 0 | M16: 0 | N16: 0 | O16: 0 | P16: 0 | Q16: 0 | R16: =SUM(F16:Q16) -> 267069422.3 | S16: 267069422.3 | T16: 0 | U16: 0 | V16: 0 | W16: 0 | X16: 0 | Y16: 0 | Z16: 0 | AA16: 0 | AB16: 0 | AC16: 0 | AD16: 0 | AE16: =SUM(S16:AD16) -> 267069422.3
A17: TOTAL PRESUPUESTO DE LA SECCIÓN | D17: =+D7+D15 -> 1233825443 | E17: 1233825443 | F17: 273352755.3 | G17: 0 | H17: 0 | I17: 0 | J17: 0 | K17: 0 | L17: 0 | M17: 0 | N17: 0 | O17: 0 | P17: 0 | Q17: 0 | R17: 273352755.3 | S17: 273352755.3 | T17: 0 | U17: 0 | V17: 0 | W17: 0 | X17: 0 | Y17: 0 | Z17: 0 | AA17: 0 | AB17: 0 | AC17: 0 | AD17: 0 | AE17: 273352755.3
